lending/lending_fUSD_20260206
["ID","MTS","AMOUNT","RATE_DAILY","PERIOD"]
[404654965,1770384647426,-667.23,0.00043287,120]
[404654966,1770384647436,-667.23,0.00043287,120]
[404654967,1770384647447,-667.23,0.00043287,120]
[404654968,1770384647457,-667.23,0.00043287,120]
[404654969,1770384647467,-667.23,0.00043287,120]
[404654970,1770384647478,-667.23,0.00043287,120]
[404654971,1770384647488,-667.23,0.00043287,120]
[404654972,1770384647499,-667.23,0.00043287,120]
[404654973,1770384647508,-667.23,0.00043287,120]
[404654974,1770384647519,-667.23,0.00043287,120]
[404654975,1770384647529,-667.23,0.00043287,120]
[404654976,1770384647539,-667.23,0.00043287,120]
[404654977,1770384647550,-667.23,0.00043287,120]
[404654978,1770384647560,-667.23,0.00043287,120]
[404654979,1770384647570,-667.23,0.00043287,120]
[404654980,1770384647580,-667.23,0.00043287,120]
[404654981,1770384647591,-667.23,0.00043287,120]
[404654982,1770384647601,-667.23,0.00043287,120]
[404654983,1770384647611,-667.31000003,0.00043287,120]
[404654984,1770384647621,-500.0,0.00043287,2]
[404654985,1770384647631,-500.0,0.00043287,2]
[404654986,1770384647642,-500.0,0.00043287,2]
[404654987,1770384647652,-500.0,0.00043287,2]
[404654988,1770384647662,-500.0,0.00043287,2]
[404654989,1770384647673,-501.3992,0.00043287,2]
[404654990,1770384647684,-896.62003267,0.00043323,2]
[404654991,1770384647694,-500.0,0.00043355,30]
[404654992,1770384647704,-300.0,0.000434,15]
[404654993,1770384647714,-157.4,0.000434,14]
[404654994,1770384647725,-300.0,0.00043499,30]
[404654995,1770384647735,-3294.45,0.000435,120]
[404654996,1770384647748,-1292.78,0.000435,30]
[404654997,1770384647758,-288.62,0.000435,14]
[404654998,1770384647768,-27100.63,0.000435,2]
[404654999,1770384647778,-300.0,0.000435,15]
[404655000,1770384647787,-394.0,0.00043534,2]
[404655001,1770384647798,-1000.0,0.00043547,30]
[404655002,1770384647808,-500.0,0.00043574,60]
[404655003,1770384647818,-800.0,0.00043574,60]
[404655004,1770384647828,-500.0,0.00043574,60]
[404655005,1770384647838,-300.0,0.000436,15]
[404655006,1770384647848,-866.23,0.00043629,30]
[404655007,1770384647858,-300.0,0.00043649,30]
[404655008,1770384647869,-3489.0,0.0004365,16]
[404655009,1770384647879,-343.07663488,0.00043673,14]
[404655010,1770384647892,-222.22222,0.0004368,120]
[404655011,1770384647902,-222.22222,0.0004368,120]
[404655012,1770384647912,-222.22222,0.0004368,120]
[404655013,1770384647926,-222.22222,0.0004368,120]
[404655014,1770384647938,-222.22223,0.0004368,120]
[404655015,1770384647948,-2209.90195573,0.0004369,2]
[404655016,1770384647959,-300.0,0.000437,15]
[404655017,1770384647971,-113199.999999,0.0004375,120]
[404655018,1770384647981,-1000.0,0.00043755,14]
[404655019,1770384647991,-300.0,0.00043799,30]
[404655020,1770384648005,-3985.12746674,0.000438,30]
[404655021,1770384648016,-1029.45407458,0.000438,30]
[404655022,1770384648026,-900.0,0.000438,15]
[404655023,1770384648037,-1000.0,0.00043821,30]
[404655024,1770384648047,-638.87924173,0.00043835,120]
[404655025,1770384648059,-179.42726951,0.00043877,2]
[404655026,1770384648071,-226.0,0.00043882,2]
[404655027,1770384648086,-2000.0,0.00043901,3]
[404655028,1770384648096,-151.0,0.00043915,120]
[404655029,1770384648106,-151.0,0.0004394,3]
[404655030,1770384648120,-156.587,0.0004394,3]
[404655031,1770384648130,-162.380719,0.0004394,3]
[404655032,1770384648140,-157.95549569,0.0004394,3]
[404655033,1770384648152,-575.93,0.00043978,30]
[404655034,1770384648163,-575.93,0.00043978,30]
[404655035,1770384648173,-300.0,0.00043986,30]
[404655036,1770384648182,-1271.78,0.00043987,120]
[404655037,1770384648192,-1271.78,0.00043987,120]
[404655038,1770384648202,-1271.78,0.00043987,120]
[404655039,1770384648212,-1271.78,0.00043987,120]
[404655040,1770384648222,-1271.99996491,0.00043987,120]
[404655041,1770384648232,-166.66,0.00043992,2]
[404655042,1770384648242,-151.0,0.00043997,120]
[404655043,1770384648255,-300.0,0.00043999,30]
[404655044,1770384648265,-150.0,0.00044,57]
[404655045,1770384648275,-500.0,0.00044,120]
[404655046,1770384648286,-5041.0,0.00044,30]
[404655047,1770384648296,-8300.0,0.00044,120]
[404655048,1770384648305,-160.0,0.00044,120]
[404655049,1770384648316,-292.16564084,0.00044,120]
[404655050,1770384648326,-616.09857316,0.00044,120]
[404655051,1770384648336,-150.0,0.00044,10]
[404655052,1770384648347,-200.0,0.00044,26]
[404655053,1770384648357,-160.0,0.00044,30]
[404655054,1770384648366,-151.0,0.00044001,120]
[404655055,1770384648376,-151.0,0.00044001,120]
[404655056,1770384648386,-170.57497397,0.00044011,19]
[404655057,1770384648396,-202.23410168,0.00044011,14]
[404655058,1770384648406,-154.66036331,0.00044015,120]
[404655059,1770384648415,-1867.98117283,0.00044015,2]
[404655060,1770384648425,-579.88972856,0.00044015,28]
[404655061,1770384648435,-272.36407062,0.00044015,2]
[404655062,1770384648445,-300.0,0.00044069,30]
[404655063,1770384648455,-1000.0,0.0004407,3]
[404655064,1770384648466,-400.0,0.0004407,3]
[404655065,1770384648475,-1000.0,0.0004407,3]
[404655066,1770384648485,-400.0,0.0004407,3]
[404655067,1770384648496,-1000.0,0.0004407,3]
[404655068,1770384648506,-400.0,0.0004407,3]
[404655069,1770384648516,-1000.0,0.0004407,3]
[404655070,1770384648526,-400.0,0.0004407,3]
[404655071,1770384648536,-1000.0,0.0004407,3]
[404655072,1770384648545,-605.94629065,0.0004407,3]
[404655073,1770384648555,-1000.0,0.0004407,3]
[404655074,1770384648565,-1000.0,0.0004407,3]
[404655075,1770384648575,-1000.0,0.0004407,3]
[404655076,1770384648586,-1000.0,0.0004407,3]
[404655077,1770384648596,-1000.0,0.0004407,3]
[404655078,1770384648606,-1358.57274403,0.0004407,3]
[404655079,1770384648615,-1000.0,0.00044082,30]
[404655080,1770384648626,-294.0,0.00044095,60]
[404655081,1770384648636,-778.0,0.00044095,60]
[404655082,1770384648646,-756.0,0.00044095,60]
[404655083,1770384648657,-1000.0,0.00044095,30]
[404655084,1770384648666,-3065.37,0.00044096,30]
[404655085,1770384648677,-402.57820869,0.00044096,120]
[404655086,1770384648686,-152.49979043,0.00044096,30]
[404655087,1770384648696,-5000.0,0.00044098,30]
[404655088,1770384648706,-150.0,0.00044098,120]
[404655089,1770384648715,-1000.0,0.00044099,120]
[404655090,1770384648725,-799.0,0.00044099,120]
[404655091,1770384648734,-799.01,0.00044099,120]
[404655092,1770384648744,-200.0,0.000441,120]
[404655093,1770384648754,-439.38415914,0.000441,120]
[404655094,1770384648763,-440.44417983,0.000441,120]
[404655095,1770384648775,-402.18464311,0.000441,120]
[404655096,1770384648787,-699.4194899,0.000441,120]
[404655097,1770384648797,-1004.39514797,0.000441,120]
[404655098,1770384648807,-180.22679479,0.000441,120]
[404655099,1770384648817,-505.3361293,0.000441,120]
[404655100,1770384648827,-907.69173691,0.000441,120]
[404655101,1770384648838,-1999.8,0.000441,120]
[404655102,1770384648848,-204.03399859,0.000441,120]
[404655103,1770384648858,-315.44,0.000441,60]
[404655104,1770384648868,-205.0,0.000441,30]
[404655105,1770384648879,-609.0,0.000441,30]
[404655106,1770384648888,-987.0,0.000441,30]
[404655107,1770384648898,-309.0,0.000441,30]
[404655108,1770384648907,-300.0,0.00044103,30]
[404655109,1770384648917,-300.0,0.00044103,30]
[404655110,1770384648926,-666.0,0.00044103,30]
[404655111,1770384648936,-300.0,0.00044103,30]
[404655112,1770384648946,-6438.6,0.00044104,30]
[404655113,1770384648956,-1000.0,0.00044104,30]
[404655114,1770384648966,-2685.86,0.00044104,30]
[404655115,1770384648976,-2680.0,0.00044104,30]
[404655116,1770384648989,-785.65266576,0.00044104,30]
[404655117,1770384649005,-286.0095686,0.00044104,63]
[404655118,1770384649016,-110988.6237482,0.00044104,7]
[404655119,1770384649249,647093.0,0.00035616,120]
[404655120,1770384649286,-151.0,0.00039673,120]
[404655121,1770384649297,-7422.66895597,0.00044104,7]
[404655122,1770384649316,-476.45,0.00044095,60]
[404655123,1770384649329,-314.55,0.00044095,60]
[404655124,1770384649339,-695.55,0.00044104,7]
[404655125,1770384649352,-1108.39182829,0.00044104,7]
[404655126,1770384649364,-756.45735762,0.00044104,7]
[404655127,1770384649381,-273.0,0.00043746,2]
[404655128,1770384649392,-6297.0,0.00044104,7]
[404655129,1770384649417,-150.0,0.00030173,2]
[404655130,1770384649427,-180.07163997,0.00044095,60]
[404655131,1770384649439,-610.92836003,0.00044095,60]
[404655132,1770384649449,-791.0,0.00044095,60]
[404655133,1770384649459,-7133.96732432,0.00044104,7]
[404655134,1770384649469,-150.0,0.00044104,120]
[404655135,1770384649479,-173.256273,0.00044104,120]
[404655136,1770384649489,-199.281057,0.00044104,120]
[404655137,1770384649502,-151.0,0.00044104,120]
[404655138,1770384649513,-151.0,0.00044104,60]
[404655139,1770384649524,-151.0,0.00044104,120]
[404655140,1770384649536,-151.0,0.00044104,120]
[404655141,1770384649548,-151.0,0.00044104,120]
[404655142,1770384649561,-151.0,0.00044104,120]
[404655143,1770384649573,-151.0,0.00044104,120]
[404655144,1770384649583,-151.0,0.00044104,120]
[404655145,1770384649594,-151.0,0.00044104,120]
[404655146,1770384649606,-157.415289,0.00044104,90]
[404655147,1770384649624,-157.415289,0.00044104,90]
[404655148,1770384649635,-1710.537627,0.00044104,120]
[404655149,1770384649646,-157.415289,0.00044104,90]
[404655150,1770384649660,-1710.537627,0.00044104,120]
[404655151,1770384649677,-1710.537627,0.00044104,120]
[404655152,1770384649949,-157.415289,0.00044104,90]
[404655153,1770384649965,-1710.537627,0.00044104,120]
[404655154,1770384649975,-800.0,0.00044106,16]
[404655155,1770384649985,-800.0,0.00044106,16]
[404655156,1770384649995,-800.0,0.00044106,16]
[404655157,1770384650006,-800.0,0.00044106,16]
[404655158,1770384650018,-800.0,0.00044106,16]
[404655159,1770384650029,-800.0,0.00044106,16]
[404655160,1770384650039,-800.0,0.00044106,16]
[404655161,1770384650049,-800.0,0.00044106,16]
[404655162,1770384650058,-800.0,0.00044106,32]
[404655163,1770384650068,-300.0,0.00044109,30]
[404655164,1770384650079,-300.0,0.0004411,30]
[404655165,1770384650089,-300.0,0.0004411,30]
[404655166,1770384650098,-76724.75532165,0.0004411,10]
[404655167,1770384650110,-6417.64370455,0.0004411,10]
[404655168,1770384665506,2500.0,0.00020676,120]
[404655169,1770384665644,2500.0,0.00028119,120]
[404655170,1770384665800,2500.0,0.00028119,120]
[404655171,1770384665924,2500.0,0.00028119,120]
[404655172,1770384666059,2500.0,0.00028119,120]
[404655175,1770384728615,338.7714939,0.00044115,60]
[404655178,1770384781551,300.0,0.00010909,2]
[404655179,1770384782063,150.0,0.00010909,2]
[404655181,1770384786642,350.0,0.00033,90]
[404655182,1770384788599,2378.12,0.00044115,30]
[404655186,1770384813672,150.0,0.00044115,120]
[404655187,1770384825079,830.47845,0.00010855,2]
[404655188,1770384828093,300.0,0.00010909,2]
[404655190,1770384863017,180.87617865,0.00010878,2]
[404655192,1770384873669,612.50112871,0.00010909,2]
[404655193,1770384873721,166.58109176,0.00010909,2]
[404655194,1770384875134,359.41491161,0.00010909,2]
[404655195,1770384875168,647.52299351,0.00010909,2]
[404655196,1770384875202,500.0,0.00010909,2]
[404655197,1770384875235,500.0,0.00010909,2]
[404655198,1770384875267,452.63524576,0.00010909,2]
[404655199,1770384875292,47.36475424,0.00010909,2]
[404655200,1770384875338,500.0,0.00010909,2]
[404655201,1770384875377,500.0,0.00010909,2]
[404655202,1770384875410,500.0,0.00010909,2]
[404655203,1770384875448,500.0,0.00010909,2]
[404655204,1770384875480,500.0,0.00010909,2]
[404655205,1770384875512,500.0,0.00010909,2]
[404655206,1770384875545,500.0,0.00010909,2]
[404655207,1770384875575,500.0,0.00010909,2]
[404655208,1770384875616,500.0,0.00010909,2]
[404655209,1770384875648,452.64524576,0.00010909,2]
[404655210,1770384875675,47.35475424,0.00010909,2]
[404655211,1770384875707,500.0,0.00010909,2]
[404655212,1770384875757,500.0,0.00010909,2]
[404655213,1770384875789,500.0,0.00010909,2]
[404655214,1770384875822,500.0,0.00010909,2]
[404655215,1770384875894,500.0,0.00010909,2]
[404655216,1770384875928,500.0,0.00010909,2]
[404655217,1770384875960,500.0,0.00010909,2]
[404655218,1770384875999,500.0,0.00010909,2]
[404655219,1770384876031,500.0,0.00010909,2]
[404655220,1770384876061,452.65524576,0.00010909,2]
[404655221,1770384876085,47.34475424,0.00010909,2]
[404655222,1770384876131,500.0,0.00010909,2]
[404655223,1770384876177,500.0,0.00010909,2]
[404655224,1770384876212,500.0,0.00010909,2]
[404655225,1770384876252,500.0,0.00010909,2]
[404655226,1770384876310,500.0,0.00010909,2]
[404655227,1770384876349,556.67047832,0.00010909,2]
[404655228,1770384876381,500.0,0.00010909,2]
[404655229,1770384876412,500.0,0.00010909,2]
[404655230,1770384876496,500.0,0.00010909,2]
[404655231,1770384876536,395.99476744,0.00010909,2]
[404655232,1770384876560,104.00523256,0.00010909,2]
[404655233,1770384876614,500.0,0.00010909,2]
[404655234,1770384876671,500.0,0.00010909,2]
[404655235,1770384876715,500.0,0.00010909,2]
[404655236,1770384880752,150.0,0.00010883,2]
[404655237,1770384901563,300.0,0.00010909,2]
[404655238,1770384901596,1200.0,0.00010909,2]
[404655243,1770384955126,665.33721112,0.00010878,2]
[404655244,1770384962217,150.0,0.00010909,2]
[404655246,1770384970081,-5611.7398827,0.0001091,2]
[404655247,1770384970358,-10000.01,0.0001091,2]
[404655248,1770384979780,-10000.01,0.0001091,2]
[404655249,1770384980122,-10000.01,0.0001091,2]
[404655257,1770385081691,-1641.58037242,0.00010838,2]
[404655281,1770385173950,160.0,0.00035616,120]
[404655282,1770385205819,276.0926,0.0001081,2]
[404655318,1770385253841,200.0,0.00010649,2]
[404655328,1770385285240,7344.162,0.0001081,2]
[404655335,1770385291834,2500.0,0.0001081,2]
[404655336,1770385293384,1017.0,0.00044095,30]
[404655337,1770385363296,3000.0,0.00035,120]
[404655431,1770385483559,9508.0,0.00035616,120]
[404655440,1770385746861,1218.1244604,0.00035616,120]
[404655441,1770385757464,1800.0,0.00044096,120]
[404655444,1770385771865,2000.0,0.00044096,120]
[404655445,1770385773105,-2553.7778032,0.00010876,2]
[404655446,1770385801271,1200.0,0.00010875,2]
[404655447,1770385812268,375.48088536,0.00010866,2]
[404655448,1770385814497,164.72666024,0.00044096,120]
[404655449,1770385817947,-100000.0,0.00010876,2]
[404655450,1770385822228,1094.38691494,0.00010777,2]
[404655455,1770385832084,168.49102568,0.00010875,2]
[404655456,1770385832116,500.0,0.00010875,2]
[404655457,1770385832164,187.68659364,0.00010875,2]
[404655458,1770385832200,-10695.38121168,0.00010876,2]
[404655459,1770385832213,-7172.5997,0.00010876,2]
[404655460,1770385832380,-1139.13646,0.00010876,2]
[404655461,1770385832391,-6338.74704749,0.00010876,2]
[404655462,1770385832406,-8668.84959226,0.00010876,2]
[404655463,1770385832418,-326.71333278,0.00010876,2]
[404655464,1770385832431,-40966.62079188,0.00010876,2]
[404655465,1770385832444,-104051.91465189,0.00010876,2]
[404655466,1770385832455,-56739.75008132,0.00010876,2]
[404655468,1770385832467,-1254.41808677,0.00010876,2]
[404655474,1770385832512,414.33302318,0.00010875,2]
[404655477,1770385832529,-11315.74245178,0.00010876,2]
[404655479,1770385832540,-12707.32106601,0.00010876,2]
[404655489,1770385834977,221.28848559,0.00010875,2]
[404655490,1770385835012,500.0,0.00010875,2]
[404655491,1770385835045,338.34307161,0.00010875,2]
[404655492,1770385835069,161.65692839,0.00010875,2]
[404655493,1770385835104,500.0,0.00010875,2]
[404655494,1770385835136,500.0,0.00010875,2]
[404655495,1770385835169,500.0,0.00010875,2]
[404655496,1770385835214,500.0,0.00010875,2]
[404655497,1770385835254,500.0,0.00010875,2]
[404655498,1770385835291,500.0,0.00010875,2]
[404655499,1770385835330,500.0,0.00010875,2]
[404655500,1770385835405,500.0,0.00010875,2]
[404655501,1770385835448,500.0,0.00010875,2]
[404655502,1770385835488,338.35307161,0.00010875,2]
[404655503,1770385835514,161.64692839,0.00010875,2]
[404655504,1770385835552,500.0,0.00010875,2]
[404655505,1770385835585,500.0,0.00010875,2]
[404655506,1770385835618,500.0,0.00010875,2]
[404655507,1770385835652,500.0,0.00010875,2]
[404655508,1770385835696,500.0,0.00010875,2]
[404655509,1770385835739,500.0,0.00010875,2]
[404655510,1770385835774,500.0,0.00010875,2]
[404655511,1770385835814,500.0,0.00010875,2]
[404655512,1770385835853,500.0,0.00010875,2]
[404655513,1770385836017,338.36307161,0.00010875,2]
[404655514,1770385836042,161.63692839,0.00010875,2]
[404655515,1770385836076,500.0,0.00010875,2]
[404655516,1770385836123,500.0,0.00010875,2]
[404655517,1770385836176,500.0,0.00010875,2]
[404655518,1770385836226,500.0,0.00010875,2]
[404655521,1770385838272,-1860820.7061527,0.00010876,2]
[404655522,1770385838387,-781.08,0.00010876,2]
[404655523,1770385838447,-20641.86651677,0.00010876,2]
[404655525,1770385838563,-91699.99999997,0.00010876,2]
[404655527,1770385840313,-1112.81840749,0.00010876,2]
[404655528,1770385840337,-4.4929,0.00010876,2]
[404655529,1770385840388,-412.36465774,0.00010876,2]
[404655530,1770385840675,-2377.1211255,0.00010876,2]
[404655553,1770385844251,-77935.17446178,0.00010876,2]
[404655554,1770385844311,-1022.36999682,0.00010876,2]
[404655555,1770385846236,-2739.07509898,0.00010876,2]
[404655556,1770385846264,-312.8532492,0.00010876,2]
[404655557,1770385846522,-7241.58186452,0.00010876,2]
[404655558,1770385846540,-23631.75523459,0.00010876,2]
[404655559,1770385846611,-7573.67552572,0.00010876,2]
[404655560,1770385846623,-999.0,0.00010876,2]
[404655561,1770385846636,-288.58690369,0.00010876,2]
[404655562,1770385846647,-2022.4976886,0.00010876,2]
[404655568,1770385852008,500.0,0.00010778,2]
[404655569,1770385862720,150.0,0.00010875,2]
[404655570,1770385868808,300.0,0.00010875,2]
[404655572,1770385892615,2179.192,0.00010658,2]
[404655573,1770385892748,180.867,0.00010658,2]
[404655574,1770385914152,3693.08968646,0.00044096,120]
[404655575,1770385928758,3095.078683,0.00044096,120]
[404655582,1770385936838,150.0,0.00010848,2]
[404655584,1770385937872,150.0,0.00010848,2]
[404655586,1770385945994,500.0,0.00044096,120]
[404655587,1770385962617,700.0,0.000108,3]
[404655588,1770385964732,1500.0,0.000109,3]
[404655593,1770385992096,3868.14,0.00035616,120]
[404655597,1770386043179,300.0,0.00010875,2]
[404655598,1770386047621,1428.08044702,0.00010776,2]
[404655608,1770386060538,500.0,0.00010875,2]
[404655609,1770386060578,500.0,0.00010875,2]
[404655610,1770386060610,500.0,0.00010875,2]
[404655611,1770386060641,500.0,0.00010875,2]
[404655612,1770386060673,500.0,0.00010875,2]
[404655613,1770386060707,471.92955298,0.00010875,2]
[404655614,1770386060731,28.07044702,0.00010875,2]
[404655615,1770386060766,500.0,0.00010875,2]
[404655616,1770386060800,500.0,0.00010875,2]
[404655617,1770386060854,500.0,0.00010875,2]
[404655618,1770386060925,500.0,0.00010875,2]
[404655619,1770386060958,500.0,0.00010875,2]
[404655620,1770386060992,500.0,0.00010875,2]
[404655621,1770386061023,500.0,0.00010875,2]
[404655622,1770386061062,500.0,0.00010875,2]
[404655623,1770386061096,500.0,0.00010875,2]
[404655624,1770386061133,471.93955298,0.00010875,2]
[404655625,1770386061157,28.06044702,0.00010875,2]
[404655626,1770386061189,500.0,0.00010875,2]
[404655627,1770386061222,500.0,0.00010875,2]
[404655628,1770386061263,500.0,0.00010875,2]
[404655629,1770386061535,500.0,0.00010875,2]
[404655630,1770386061658,500.0,0.00010875,2]
[404655631,1770386061689,485.41273122,0.00010875,2]
[404655632,1770386061721,500.0,0.00010875,2]
[404655633,1770386061764,500.0,0.00010875,2]
[404655634,1770386061797,500.0,0.00010875,2]
[404655635,1770386061830,486.53682176,0.00010875,2]
[404655636,1770386061869,13.46317824,0.00010875,2]
[404655637,1770386061919,500.0,0.00010875,2]
[404655638,1770386061956,500.0,0.00010875,2]
[404655639,1770386061998,500.0,0.00010875,2]
[404655640,1770386062035,500.0,0.00010875,2]
[404655641,1770386062069,500.0,0.00010875,2]
[404655642,1770386062099,500.0,0.00010875,2]
[404655643,1770386062148,500.0,0.00010875,2]
[404655644,1770386062183,500.0,0.00010875,2]
[404655645,1770386062217,500.0,0.00010875,2]
[404655646,1770386062253,500.0,0.00010875,2]
[404655647,1770386062287,500.0,0.00010875,2]
[404655648,1770386062321,500.0,0.00010875,2]
[404655649,1770386062358,500.0,0.00010875,2]
[404655650,1770386062392,500.0,0.00010875,2]
[404655651,1770386064122,-100000.0,0.00010876,2]
[404655652,1770386072486,500.0,0.00010875,2]
[404655653,1770386072522,500.0,0.00010875,2]
[404655654,1770386072557,500.0,0.00010875,2]
[404655655,1770386072590,500.0,0.00010875,2]
[404655656,1770386072622,500.0,0.00010875,2]
[404655657,1770386072664,486.54682176,0.00010875,2]
[404655658,1770386072690,13.45317824,0.00010875,2]
[404655659,1770386072723,500.0,0.00010875,2]
[404655660,1770386072757,500.0,0.00010875,2]
[404655661,1770386072791,500.0,0.00010875,2]
[404655662,1770386072825,500.0,0.00010875,2]
[404655663,1770386072859,500.0,0.00010875,2]
[404655664,1770386072892,500.0,0.00010875,2]
[404655665,1770386072929,500.0,0.00010875,2]
[404655666,1770386072962,500.0,0.00010875,2]
[404655667,1770386072998,500.0,0.00010875,2]
[404655668,1770386073037,500.0,0.00010875,2]
[404655669,1770386073069,500.0,0.00010875,2]
[404655670,1770386073103,500.0,0.00010875,2]
[404655692,1770386086374,295.01108012,0.00010776,2]
[404655693,1770386089840,2500.0,0.00010776,2]
[404655705,1770386101720,1191.54574164,0.00010875,2]
[404655706,1770386101744,8.45425836,0.00010875,2]
[404655718,1770386124181,500.0,0.00010875,2]
[404655719,1770386124233,500.0,0.00010875,2]
[404655722,1770386130049,400.0,0.00044098,30]
[404655723,1770386130660,400.0,0.00044098,30]
[404655724,1770386131320,400.0,0.00044098,30]
[404655725,1770386131924,400.0,0.00044098,30]
[404655726,1770386132524,400.0,0.00044098,30]
[404655727,1770386133031,400.0,0.00044098,30]
[404655728,1770386133555,400.0,0.00044098,30]
[404655729,1770386134040,400.0,0.00044098,30]
[404655730,1770386134462,150.0,0.00010848,2]
[404655731,1770386134543,400.0,0.00044098,30]
[404655732,1770386135084,400.0,0.00044098,30]
[404655733,1770386135618,400.0,0.00044098,30]
[404655734,1770386135731,500.0,0.00010875,2]
[404655735,1770386136052,500.0,0.00010875,2]
[404655736,1770386136116,400.0,0.00044098,30]
[404655737,1770386136777,400.0,0.00044098,30]
[404655738,1770386137343,400.0,0.00044098,30]
[404655739,1770386137793,400.0,0.00044098,30]
[404655740,1770386138362,400.0,0.00044098,30]
[404655741,1770386139363,435.3542101,0.00044098,30]
[404655742,1770386144541,150.0,0.00010848,2]
[404655743,1770386149352,250.45215128,0.00010776,2]
[404655744,1770386150361,500.0,0.00010875,2]
[404655745,1770386150405,282.64229382,0.00010875,2]
[404655753,1770386167949,3351.99672018,0.00010776,2]
[404655754,1770386168183,3118.08941822,0.00044098,120]
[404655755,1770386171288,500.0,0.00010875,2]
[404655756,1770386171326,242.77514204,0.00010875,2]
[404655757,1770386171374,228.79128437,0.00010875,2]
[404655759,1770386171426,500.0,0.00010875,2]
[404655760,1770386171456,1834.89814995,0.00010776,2]
[404655761,1770386171479,10000.01,0.00010776,2]
[404655762,1770386171506,295.62265005,0.00010776,2]
[404655763,1770386171562,293.20661927,0.00010875,2]
[404655774,1770386216677,1291.25131336,0.00010776,2]
[404655775,1770386222894,150.0,0.00010875,2]
[404655776,1770386223630,300.0,0.00010875,2]
[404655777,1770386226360,2500.0,0.00010776,2]
[404655779,1770386230973,2378.788816,0.00010821,2]
[404655780,1770386233777,151.0,0.00010876,2]
[404655781,1770386234595,151.0,0.00010876,2]
[404655782,1770386235054,151.0,0.00010876,2]
[404655783,1770386235777,151.0,0.00010876,2]
[404655784,1770386236465,151.0,0.00010876,2]
[404655785,1770386237124,151.0,0.00010876,2]
[404655786,1770386237796,151.0,0.00010876,2]
[404655787,1770386238514,151.0,0.00010876,2]
[404655788,1770386239115,151.0,0.00010876,2]
[404655789,1770386239828,151.0,0.00010876,2]
[404655790,1770386240527,151.0,0.00010876,2]
[404655791,1770386241239,151.0,0.00010876,2]
[404655792,1770386241955,151.0,0.00010876,2]
[404655793,1770386242567,151.0,0.00010876,2]
[404655794,1770386243277,151.0,0.00010876,2]
[404655795,1770386243957,151.0,0.00010876,2]
[404655796,1770386244734,151.0,0.00010876,2]
[404655797,1770386245289,151.0,0.00010876,2]
[404655798,1770386245969,151.0,0.00010876,2]
[404655799,1770386246649,151.0,0.00010876,2]
[404655800,1770386256450,259.12,0.000108,2]
[404655801,1770386259622,215.43575568,0.00010776,2]
[404655802,1770386281643,300.0,0.00010875,2]
[404655805,1770386288012,2234.66448012,0.00010776,2]
[404655810,1770386336170,6084.7897642,0.00010776,2]